bitfinex/quotes_BTCUSD_20250530
["timestamp","ask_amount","ask_price","bid_price","bid_amount"]
[1748629780337,0.85739868,104750.0,104740.0,0.06522548]
[1748629780540,0.85739868,104750.0,104740.0,0.040955]
[1748629780956,0.85739868,104750.0,104740.0,0.05860661]
[1748629781156,0.85739868,104750.0,104740.0,0.040955]
[1748629781379,0.3106671,104750.0,104740.0,0.040955]
[1748629781755,0.3106671,104750.0,104740.0,0.04757414]
[1748629781961,0.3106671,104750.0,104740.0,0.04757419]
[1748629782158,0.3106671,104750.0,104740.0,0.05860622]
[1748629782579,0.3106671,104750.0,104740.0,0.0586061]
[1748629782787,0.3106671,104750.0,104740.0,0.040955]
[1748629782982,0.3106671,104750.0,104740.0,0.04757413]
[1748629783215,0.3106671,104750.0,104740.0,0.040955]
[1748629783839,0.3106671,104750.0,104740.0,0.04757425]
[1748629784078,0.85739868,104750.0,104740.0,0.040955]
[1748629784675,0.85739868,104750.0,104740.0,0.04757442]
[1748629784872,0.85739868,104750.0,104740.0,0.040955]
[1748629785334,0.85739868,104750.0,104740.0,0.05860682]
[1748629785535,0.85739868,104750.0,104740.0,0.04757445]
[1748629785713,0.85739868,104750.0,104740.0,0.040955]
[1748629787391,0.85739868,104750.0,104740.0,0.05861406]
[1748629787592,0.9499099,104750.0,104740.0,0.04757698]
[1748629787796,0.85739868,104750.0,104740.0,0.03192848]
[1748629787991,0.85739868,104750.0,104740.0,0.02063338]
[1748629788171,0.85739868,104750.0,104740.0,0.0382917]
[1748629788377,0.85739868,104750.0,104740.0,0.038292]
[1748629788583,0.85739868,104750.0,104740.0,0.04959139]
[1748629788809,0.85739868,104750.0,104740.0,0.06525276]
[1748629789020,0.85739868,104750.0,104740.0,0.06525275]
[1748629789422,0.9499099,104750.0,104740.0,0.05621282]
[1748629789628,0.9499099,104750.0,104740.0,0.04491384]
[1748629789829,0.9499099,104750.0,104740.0,0.04491179]
[1748629790331,0.85739868,104750.0,104740.0,0.04491179]
[1748629790532,0.85739868,104750.0,104740.0,0.06525129]
[1748629790762,0.3106671,104750.0,104740.0,0.06525129]
[1748629790971,0.85739868,104750.0,104740.0,0.06525129]
[1748629791180,0.85739868,104750.0,104740.0,0.04491005]
[1748629791421,0.85739868,104750.0,104740.0,0.02063338]
[1748629791637,0.85739868,104750.0,104740.0,0.04491003]
[1748629791843,0.9499099,104750.0,104740.0,0.04491003]
[1748629792054,0.9499099,104750.0,104740.0,0.03828913]
[1748629792264,0.9499099,104750.0,104740.0,0.04490999]
[1748629792468,0.9499099,104750.0,104740.0,0.0382891]
[1748629792653,0.85739868,104750.0,104740.0,0.03828909]
[1748629792889,0.85739868,104750.0,104740.0,0.02725427]
[1748629793100,0.85739868,104750.0,104740.0,0.02063338]
[1748629793312,0.54049627,104740.0,104730.0,0.00663501]
[1748629793532,0.56460435,104730.0,104720.0,4.867e-05]
[1748629793754,2.07450751,104730.0,104720.0,4.867e-05]
[1748629793964,1.65806751,104730.0,104720.0,4.867e-05]
[1748629794134,0.87808435,104730.0,104720.0,4.867e-05]
[1748629794378,2.15991303,104730.0,104720.0,4.867e-05]
[1748629795226,1.84643303,104730.0,104720.0,4.867e-05]
[1748629795434,2.26279303,104730.0,104720.0,4.867e-05]
[1748629795998,2.26479303,104730.0,104720.0,4.867e-05]
[1748629797768,2.28381526,104730.0,104720.0,4.867e-05]
[1748629798427,1.1903521,104730.0,104720.0,4.867e-05]
[1748629798644,2.28381526,104730.0,104720.0,4.867e-05]
[1748629798900,2.29334523,104730.0,104720.0,4.867e-05]
[1748629800420,0.44404207,104730.0,104720.0,4.867e-05]
[1748629800651,0.40042902,104730.0,104720.0,4.867e-05]
[1748629800860,0.9471606,104730.0,104720.0,4.867e-05]
[1748629801069,0.3079178,104730.0,104720.0,4.867e-05]
[1748629801521,0.3079178,104730.0,104720.0,0.00905015]
[1748629801929,0.3059178,104730.0,104720.0,0.00905015]
[1748629802378,0.3069178,104730.0,104720.0,0.00905015]
[1748629802587,0.39942902,104730.0,104720.0,0.00905015]
[1748629803221,0.3069178,104730.0,104720.0,0.00905015]
[1748629804413,0.20151478,104730.0,104720.0,1.68093173]
[1748629804647,0.001,104730.0,104720.0,4.78001966]
[1748629804848,0.001,104730.0,104720.0,4.97683753]
[1748629805073,0.001,104730.0,104720.0,4.79214753]
[1748629805229,0.001,104730.0,104720.0,4.33792717]
[1748629805599,0.001,104730.0,104720.0,4.3550941]
[1748629805803,0.21004402,104740.0,104730.0,2.3805308]
[1748629806028,0.21004402,104740.0,104730.0,2.48296837]
[1748629806242,0.2195911,104740.0,104730.0,0.45993699]
[1748629806450,0.229139,104740.0,104730.0,1.04063443]
[1748629806679,0.229139,104740.0,104730.0,1.03107836]
[1748629806880,0.21959155,104740.0,104730.0,1.0555978]
[1748629807093,0.2291389,104740.0,104730.0,1.04902261]
[1748629807323,1.49050581,104740.0,104730.0,0.02397274]
[1748629807550,1.25561423,104740.0,104730.0,0.02397274]
[1748629807782,0.19851542,104730.0,104720.0,0.00404867]
[1748629807998,0.93361252,104730.0,104720.0,0.00104867]
[1748629808205,0.29236972,104730.0,104720.0,0.00104867]
[1748629808406,0.29136972,104730.0,104720.0,0.0100423]
[1748629808614,0.8381013,104730.0,104720.0,0.0100423]
[1748629809236,0.29136972,104730.0,104720.0,0.0100423]
[1748629810065,0.85264215,104730.0,104720.0,0.0100423]
[1748629810273,0.94515337,104730.0,104720.0,0.0100423]
[1748629810483,0.94615337,104730.0,104720.0,0.0100423]
[1748629810696,0.94815337,104730.0,104720.0,0.0100423]
[1748629810909,1.49488495,104730.0,104720.0,0.0100423]
[1748629811330,1.59568495,104730.0,104720.0,0.0100423]
[1748629812418,1.59568495,104730.0,104720.0,0.00104867]
[1748629813961,1.94568495,104730.0,104720.0,0.00104867]
[1748629814227,1.39946319,104730.0,104720.0,0.00104867]
[1748629814659,1.98670459,104730.0,104720.0,0.00104867]
[1748629815100,2.01536759,104730.0,104720.0,0.00104867]
[1748629816654,2.01336759,104730.0,104720.0,0.00104867]
[1748629816874,2.01536759,104730.0,104720.0,0.00104867]
[1748629817079,2.03493817,104730.0,104720.0,0.00104867]
[1748629817309,1.48569677,104730.0,104720.0,0.00104867]
[1748629817729,1.48869677,104730.0,104720.0,0.00104867]
[1748629817944,2.03593817,104730.0,104720.0,0.00104867]
[1748629818159,2.03893817,104730.0,104720.0,0.00104867]
[1748629818367,1.49169677,104730.0,104720.0,0.00104867]
[1748629819805,2.03893817,104730.0,104720.0,0.00104867]
[1748629821070,1.98893817,104730.0,104720.0,0.00104867]
[1748629821518,1.34089677,104730.0,104720.0,0.00104867]
[1748629821786,1.75149677,104730.0,104720.0,0.00104867]
[1748629822003,1.73883592,104730.0,104720.0,0.00104867]
[1748629822227,1.74883592,104730.0,104720.0,0.00104867]
[1748629822437,1.47101292,104730.0,104720.0,0.00104867]
[1748629822657,1.37017292,104730.0,104720.0,0.00104867]
[1748629822839,2.12105292,104730.0,104720.0,0.00104867]
[1748629823258,2.13559377,104730.0,104720.0,0.00104867]
[1748629824155,2.13559377,104730.0,104720.0,4.867e-05]
[1748629825554,1.72471377,104730.0,104720.0,4.867e-05]
[1748629825753,2.14507377,104730.0,104720.0,4.867e-05]
[1748629827890,2.14467377,104730.0,104720.0,4.867e-05]
[1748629828111,0.21014358,104690.0,104680.0,0.0110487]
[1748629828324,0.21014358,104690.0,104680.0,0.01769078]
[1748629828325,0.30599788,104690.0,104680.0,0.01769078]
[1748629828544,0.21014358,104690.0,104680.0,0.01769078]
[1748629828750,0.21014358,104690.0,104680.0,0.02009779]
[1748629830660,0.34611608,104690.0,104680.0,0.02009779]
[1748629831783,0.30599788,104690.0,104680.0,0.02009779]
[1748629832004,0.30599788,104690.0,104680.0,0.36009779]
[1748629832278,0.20059203,104690.0,104680.0,0.36009779]
[1748629832919,0.20059203,104690.0,104680.0,0.36000965]
[1748629837065,0.20059203,104690.0,104680.0,0.37498091]
[1748629837272,0.20059203,104690.0,104680.0,0.37062901]
[1748629837482,0.20059203,104690.0,104680.0,0.3706289]
[1748629837668,0.20059203,104690.0,104680.0,0.37063396]
[1748629837911,0.20059203,104690.0,104680.0,0.36402035]
[1748629838732,0.20059203,104690.0,104680.0,0.37064237]
[1748629839154,0.20059203,104690.0,104680.0,0.36402035]
[1748629839360,0.20059203,104690.0,104680.0,0.37064231]
[1748629839561,0.20059203,104690.0,104680.0,0.36402035]
[1748629839952,0.20059203,104690.0,104680.0,0.37064044]
[1748629840205,0.20059203,104690.0,104680.0,0.36402035]
[1748629840407,0.20059203,104690.0,104680.0,0.37064041]
[1748629840621,0.20059203,104690.0,104680.0,0.36402035]
[1748629841016,0.20059203,104690.0,104680.0,0.37063956]
[1748629841309,0.20059203,104690.0,104680.0,0.36402035]
[1748629841678,0.20059203,104690.0,104680.0,0.37063938]
[1748629841893,0.20059203,104690.0,104680.0,0.02402035]
[1748629842130,1.20421856,104690.0,104680.0,0.03064151]
[1748629842303,0.65703023,104690.0,104680.0,0.02402035]
[1748629842688,0.65703023,104690.0,104680.0,0.03064182]
[1748629842933,0.65703023,104690.0,104680.0,0.02402035]
[1748629843154,0.61786718,104690.0,104680.0,0.00904909]
[1748629844331,0.61786718,104690.0,104680.0,0.01567028]
[1748629844593,0.61786718,104690.0,104680.0,0.00904909]
[1748629845920,0.61786718,104690.0,104680.0,0.01567031]
[1748629846134,0.61786718,104690.0,104680.0,0.00904909]
[1748629846335,0.7103784,104690.0,104680.0,0.00904909]
[1748629847213,1.25756673,104690.0,104680.0,0.00904909]
[1748629848614,1.16505551,104690.0,104680.0,0.00904909]
[1748629849035,1.16505551,104690.0,104680.0,0.01567371]
[1748629849251,1.16505551,104690.0,104680.0,0.00904909]
[1748629849673,1.26325551,104690.0,104680.0,0.00904909]
[1748629849879,0.95637551,104690.0,104680.0,0.00904909]
[1748629850086,1.26277551,104690.0,104680.0,0.00904909]
[1748629850297,1.35528673,104690.0,104680.0,0.00904909]
[1748629852663,0.95068673,104690.0,104680.0,0.00904909]
[1748629852871,1.35528673,104690.0,104680.0,0.00904909]
[1748629854628,0.85817551,104690.0,104680.0,0.00904909]
[1748629854827,1.26277551,104690.0,104680.0,0.00904909]
[1748629857453,0.85817551,104690.0,104680.0,0.00904909]
[1748629857670,1.26277551,104690.0,104680.0,0.00904909]
[1748629859603,0.71558718,104690.0,104680.0,0.00904909]
[1748629859836,1.35343808,104690.0,104680.0,0.00904909]
[1748629860690,1.26277551,104690.0,104680.0,0.00904909]
[1748629862253,1.26277551,104690.0,104680.0,0.01568828]
[1748629862459,1.26277551,104690.0,104680.0,0.01568826]
[1748629862695,1.26277551,104690.0,104680.0,0.01568837]
[1748629863165,1.26277551,104690.0,104680.0,0.01568832]
[1748629863369,1.35528673,104690.0,104680.0,0.01568832]
[1748629864034,1.35528673,104690.0,104680.0,0.01569081]
[1748629864035,0.29644633,104690.0,104680.0,0.01569081]
[1748629864241,0.60280633,104690.0,104680.0,0.01569045]
[1748629864892,0.60280633,104690.0,104680.0,0.01569039]
[1748629865101,0.60280633,104690.0,104680.0,0.0156905]
[1748629865308,0.60280633,104690.0,104680.0,0.01569065]
[1748629865519,0.60280633,104690.0,104680.0,0.01569067]
[1748629865744,0.60280633,104690.0,104680.0,0.01569071]
[1748629866194,0.69531755,104690.0,104680.0,0.01569094]
[1748629866416,1.24250588,104690.0,104680.0,0.01569094]
[1748629866634,1.24250588,104690.0,104680.0,0.01569084]
[1748629866852,1.24250588,104690.0,104680.0,0.00904909]
[1748629867312,1.24250588,104690.0,104680.0,0.01569095]
[1748629868369,1.14999466,104690.0,104680.0,0.01569095]
[1748629868804,1.14999466,104690.0,104680.0,0.01569103]
[1748629869012,1.14999466,104690.0,104680.0,0.01569099]
[1748629869250,1.14999466,104690.0,104680.0,0.01569097]
[1748629869451,1.14999466,104690.0,104680.0,0.0156909]
[1748629869661,1.24250588,104690.0,104680.0,0.01569088]
[1748629870295,1.25704673,104690.0,104680.0,0.00904909]
[1748629870533,0.95068673,104690.0,104680.0,0.00904909]
[1748629870741,1.35472673,104690.0,104680.0,0.00904909]
[1748629871180,0.95068673,104690.0,104680.0,0.00904909]
[1748629871386,1.35468673,104690.0,104680.0,0.00904909]
[1748629871592,1.35568673,104690.0,104680.0,0.00904909]
[1748629872889,1.35668673,104690.0,104680.0,0.00904909]
[1748629874850,1.26417551,104690.0,104680.0,0.00904909]
[1748629878057,0.86017551,104690.0,104680.0,0.00904909]
[1748629878272,1.26417551,104690.0,104680.0,0.00904909]
[1748629880396,1.26417551,104690.0,104680.0,4.867e-05]
[1748629880814,1.26417551,104690.0,104680.0,0.00910946]
[1748629881024,1.35668673,104690.0,104680.0,0.00910946]
[1748629881964,1.26417551,104690.0,104680.0,0.00910946]
[1748629882172,0.86017551,104690.0,104680.0,0.00910946]
[1748629882380,1.26413551,104690.0,104680.0,0.00910946]
[1748629882633,0.86017551,104690.0,104680.0,0.00910946]
[1748629882832,1.26413551,104690.0,104680.0,0.00910946]
[1748629883042,0.4054984,104690.0,104680.0,0.00910946]
[1748629883269,1.26413551,104690.0,104680.0,0.00910946]
[1748629884525,0.95785551,104690.0,104680.0,0.00910946]
[1748629884731,1.26413551,104690.0,104680.0,0.00910946]
[1748629887067,0.29844633,104690.0,104680.0,0.00910946]
[1748629887315,0.60472633,104690.0,104680.0,0.00910946]
[1748629887811,1.15191466,104690.0,104680.0,0.00910946]
[1748629888255,1.16645551,104690.0,104680.0,0.00910946]
[1748629893828,2.13024651,104690.0,104680.0,0.00910946]
[1748629894055,2.63014651,104690.0,104680.0,0.00910946]
[1748629894495,2.55254384,104690.0,104680.0,0.00910946]
[1748629894706,2.64505506,104690.0,104680.0,0.00910946]
[1748629894919,2.64505506,104690.0,104680.0,4.867e-05]
[1748629894920,2.09886673,104690.0,104680.0,4.867e-05]
[1748629895160,2.09786673,104690.0,104680.0,4.867e-05]
[1748629895582,2.09986673,104690.0,104680.0,4.867e-05]
[1748629896014,0.21018373,104670.0,104660.0,0.00906348]
[1748629896221,2.17693232,104670.0,104660.0,0.0095506]
[1748629896452,1.08255566,104670.0,104660.0,0.0095506]
[1748629896667,2.17693232,104670.0,104660.0,0.00048712]
[1748629897326,2.19190332,104670.0,104660.0,0.00048712]
[1748629897791,2.20390332,104670.0,104660.0,0.00048712]
[1748629897978,2.25390332,104670.0,104660.0,0.00048712]
[1748629898437,2.25590332,104670.0,104660.0,0.00048712]
[1748629899111,2.25364183,104670.0,104660.0,0.00048712]
[1748629899539,2.25664183,104670.0,104660.0,0.00048712]
[1748629899965,2.27336693,104670.0,104660.0,0.00048712]
[1748629900180,2.27636693,104670.0,104660.0,0.00048712]
[1748629900400,0.22482503,104620.0,104610.0,0.04122919]
[1748629900626,0.32067933,104620.0,104610.0,0.05007192]
[1748629900835,0.32067933,104620.0,104610.0,0.04122919]
[1748629901066,0.40373848,104620.0,104610.0,0.07342802]
[1748629901276,0.40373848,104620.0,104610.0,0.08225776]
[1748629901484,0.40373848,104620.0,104610.0,0.07342802]
[1748629901699,0.40373848,104620.0,104610.0,0.0735741]
[1748629901952,0.40373848,104620.0,104610.0,0.03745118]
[1748629902153,0.40373848,104620.0,104610.0,0.02612574]
[1748629902593,0.40373848,104620.0,104610.0,0.03112574]
[1748629903100,0.21028418,104620.0,104610.0,0.03112574]
[1748629903343,0.21028418,104620.0,104610.0,0.87157091]
[1748629903547,0.19116803,104620.0,104610.0,0.67743922]
[1748629903759,0.19116803,104620.0,104610.0,0.67743921]
[1748629903977,0.19116803,104620.0,104610.0,0.03112574]
[1748629904829,0.19116803,104620.0,104610.0,0.79990408]
[1748629905050,0.19116803,104620.0,104610.0,0.06152944]
[1748629905268,0.19116803,104620.0,104610.0,0.0607846]
[1748629905481,0.19116803,104620.0,104610.0,0.05858125]
[1748629905689,0.19116803,104620.0,104610.0,0.04364882]
[1748629905902,0.19116803,104620.0,104610.0,0.05246373]
[1748629906119,0.19116803,104620.0,104610.0,0.04585255]
[1748629906330,0.19116803,104620.0,104610.0,0.04584873]
[1748629906531,0.19116803,104620.0,104610.0,0.05245691]
[1748629906742,0.19116803,104620.0,104610.0,0.0458499]
[1748629906960,0.19116803,104620.0,104610.0,0.03703764]
[1748629907377,0.19116803,104620.0,104610.0,0.0458501]
[1748629908008,0.19116803,104620.0,104610.0,0.04584879]
[1748629908234,0.19116803,104620.0,104610.0,0.03703764]
[1748629908441,0.19116803,104620.0,104610.0,0.04584883]
[1748629908888,0.19116803,104620.0,104610.0,0.03703764]
[1748629909101,0.19116803,104620.0,104610.0,0.02751869]
[1748629909553,0.19116803,104620.0,104610.0,0.01619325]
[1748629911087,0.19116803,104620.0,104610.0,0.02500281]
[1748629911294,0.19116803,104620.0,104610.0,0.02500288]
[1748629911706,0.19116803,104620.0,104610.0,0.03632832]
[1748629911949,0.19116803,104620.0,104610.0,0.02751869]
[1748629913015,0.19116803,104620.0,104610.0,0.01619325]
[1748629913249,0.00955794,104620.0,104610.0,1.21575595]
[1748629913476,0.02867382,104620.0,104610.0,1.13866798]
[1748629913691,0.22940025,104620.0,104610.0,1.12910797]
[1748629913904,0.22940025,104620.0,104610.0,1.15073845]
[1748629914109,0.22940025,104620.0,104610.0,1.15955091]
[1748629914318,0.22940025,104620.0,104610.0,1.24324967]
[1748629914556,0.22940025,104620.0,104610.0,1.24545544]
[1748629914764,0.22940025,104620.0,104610.0,1.23664033]
[1748629914968,0.22940025,104620.0,104610.0,1.22708157]
[1748629915178,0.22940025,104620.0,104610.0,1.24250801]
[1748629915386,0.22940025,104620.0,104610.0,1.27708157]
[1748629915612,0.21984258,104620.0,104610.0,0.63738202]
[1748629915843,0.21028464,104620.0,104610.0,1.16545255]
[1748629916053,0.21028464,104620.0,104610.0,1.18162583]
[1748629916268,0.93491258,104620.0,104610.0,0.02751869]
[1748629916690,0.29658073,104620.0,104610.0,0.02751869]
[1748629916909,0.29658073,104620.0,104610.0,0.01619325]
[1748629917121,0.20072643,104620.0,104610.0,0.81809503]
[1748629917332,0.19116803,104620.0,104610.0,0.61534941]
[1748629917546,0.19116803,104620.0,104610.0,0.7571272]
[1748629917770,0.02867455,104620.0,104610.0,1.09110078]
[1748629917981,0.21984258,104620.0,104610.0,1.11021858]
[1748629918192,0.02867382,104620.0,104610.0,1.11198479]
[1748629918473,0.02867373,104620.0,104610.0,1.45492815]
[1748629918754,0.02867373,104620.0,104610.0,2.0946277]
[1748629918986,0.02867117,104630.0,104620.0,0.5693997]
[1748629919217,0.23893535,104630.0,104620.0,1.113645]
[1748629919455,0.22937787,104630.0,104620.0,1.11364461]
[1748629919692,0.22937842,104630.0,104620.0,1.10408662]
[1748629919928,0.22937842,104630.0,104620.0,1.10408658]
[1748629920211,0.22937842,104630.0,104620.0,1.22167507]
[1748629920473,0.22937842,104630.0,104620.0,1.21212293]
[1748629920720,0.21982148,104630.0,104620.0,1.13311057]
[1748629920958,0.21982148,104630.0,104620.0,1.14266912]
[1748629921205,0.21982148,104630.0,104620.0,1.15222688]
[1748629921206,0.21026409,104630.0,104620.0,1.15222688]
[1748629921467,0.21982148,104630.0,104620.0,0.60503818]
[1748629921690,0.21982148,104630.0,104620.0,1.24473762]
[1748629921901,0.22937896,104630.0,104620.0,1.24474538]
[1748629922118,0.22937896,104630.0,104620.0,1.2447452]
[1748629922459,0.22937896,104630.0,104620.0,1.23518744]
[1748629922729,0.22937896,104630.0,104620.0,1.13604907]
[1748629922996,0.22937896,104630.0,104620.0,0.59548708]
[1748629923247,0.21026463,104630.0,104620.0,0.67521843]
[1748629923509,0.21026463,104630.0,104620.0,0.35404717]
[1748629924055,0.30611893,104630.0,104620.0,0.01404717]
[1748629924257,0.32065978,104630.0,104620.0,0.01404717]
[1748629924478,0.32065978,104630.0,104620.0,0.0206852]
[1748629924706,0.32065978,104630.0,104620.0,0.01404717]
[1748629925137,0.32065978,104630.0,104620.0,0.02537086]
[1748629925367,0.30611893,104630.0,104620.0,0.02537086]
[1748629926012,0.30611893,104630.0,104620.0,0.04710704]
[1748629926219,0.30611893,104630.0,104620.0,0.04710757]
[1748629926854,0.30611893,104630.0,104620.0,0.04046912]
[1748629927702,0.30611893,104630.0,104620.0,0.04710724]
[1748629927939,0.30611893,104630.0,104620.0,0.04046912]
[1748629928612,0.21026463,104630.0,104620.0,0.04046912]
[1748629928826,0.21026463,104630.0,104620.0,0.09924947]
[1748629929255,0.21026463,104630.0,104620.0,0.08792578]
[1748629929469,0.21026463,104630.0,104620.0,0.02914543]
[1748629929687,0.21026463,104630.0,104620.0,0.04241823]
[1748629929933,0.21026463,104630.0,104620.0,0.03578118]
[1748629930150,0.21026463,104630.0,104620.0,0.03578051]
[1748629930373,0.21026463,104630.0,104620.0,0.03578047]
[1748629930594,0.21026463,104630.0,104620.0,0.07914543]
[1748629930807,0.21026463,104630.0,104620.0,0.13841285]
[1748629931625,0.21026463,104630.0,104620.0,0.08578046]
[1748629931869,0.21026463,104630.0,104620.0,0.02914543]
[1748629932607,0.21026463,104630.0,104620.0,0.0357804]
[1748629932818,0.21026463,104630.0,104620.0,0.02914543]
[1748629933031,0.21026463,104630.0,104620.0,0.03577949]
[1748629933248,0.21026463,104630.0,104620.0,0.02914543]
[1748629933748,0.21026463,104630.0,104620.0,0.03577793]
[1748629933960,0.21026463,104630.0,104620.0,0.02914543]
[1748629934403,0.21026463,104630.0,104620.0,0.03577776]
[1748629934827,0.21026463,104630.0,104620.0,0.04710026]
[1748629935074,0.21026463,104630.0,104620.0,0.04710055]
[1748629935284,0.21026463,104630.0,104620.0,0.04046793]
[1748629935525,0.21026463,104630.0,104620.0,0.10588136]
[1748629936609,0.21026463,104630.0,104620.0,0.04710001]
[1748629936827,0.21026463,104630.0,104620.0,0.04710057]
[1748629937048,0.21026463,104630.0,104620.0,0.09710041]
[1748629937271,0.21026463,104630.0,104620.0,0.09710039]
[1748629937496,0.21026463,104630.0,104620.0,0.09710046]
[1748629937719,0.21026463,104630.0,104620.0,0.16154395]
[1748629938161,0.21026463,104630.0,104620.0,0.1615439]
[1748629938375,0.21026463,104630.0,104620.0,0.09710041]
[1748629938595,0.21026463,104630.0,104620.0,0.09709982]
[1748629938831,0.21026463,104630.0,104620.0,0.09046793]
[1748629939762,0.21026463,104630.0,104620.0,0.09709907]
[1748629939989,0.21026463,104630.0,104620.0,0.09046793]
[1748629940222,0.21026463,104630.0,104620.0,0.09709849]
[1748629940481,0.93859892,104630.0,104620.0,0.04709905]
[1748629940700,1.03611892,104630.0,104620.0,0.04046793]
[1748629940925,1.37611892,104630.0,104620.0,0.04046793]
[1748629941153,1.37611892,104630.0,104620.0,0.001]
[1748629941766,1.37611892,104630.0,104620.0,0.004]
[1748629941939,1.37611892,104630.0,104620.0,0.001]
[1748629942307,0.20072624,104620.0,104610.0,0.00014608]
[1748629942521,1.14984887,104620.0,104610.0,0.00014608]
[1748629943825,1.15284887,104620.0,104610.0,0.00014608]
[1748629944057,1.50838972,104620.0,104610.0,0.00014608]
[1748629944266,2.13218072,104620.0,104610.0,0.00014608]
[1748629944486,1.58499239,104620.0,104610.0,0.00014608]
[1748629944689,1.67750361,104620.0,104610.0,0.00014608]
[1748629945369,2.14808927,104620.0,104610.0,0.00014608]
[1748629945580,2.19808927,104620.0,104610.0,0.00014608]
[1748629946004,2.20808927,104620.0,104610.0,0.00014608]
[1748629946622,1.66090094,104620.0,104610.0,0.00014608]
[1748629947245,1.08741239,104620.0,104610.0,0.00014608]
[1748629947462,1.60590972,104620.0,104610.0,0.00014608]
[1748629948114,1.29986972,104620.0,104610.0,0.00014608]
[1748629948330,1.60598972,104620.0,104610.0,0.00014608]
[1748629949445,1.05880139,104620.0,104610.0,0.00014608]
[1748629949646,1.60598972,104620.0,104610.0,0.00014608]
[1748629949865,1.69850094,104620.0,104610.0,0.00014608]
[1748629950075,0.31512139,104620.0,104610.0,0.00014608]
[1748629950286,1.16842972,104620.0,104610.0,0.00014608]
[1748629951445,0.21034451,104590.0,104580.0,0.97621691]
[1748629951675,0.21034451,104590.0,104580.0,0.9763631]
[1748629951884,0.21034451,104590.0,104580.0,1.06887432]
[1748629952090,0.21034451,104590.0,104580.0,0.54153991]
[1748629952303,0.21034451,104590.0,104580.0,0.54815654]
[1748629952505,0.21034451,104590.0,104580.0,0.47058406]
[1748629952922,0.21034451,104590.0,104580.0,0.47960753]
[1748629953132,0.21034451,104590.0,104580.0,0.48622416]
[1748629953382,0.21034451,104590.0,104580.0,0.48722412]
[1748629953589,0.30619881,104590.0,104580.0,0.14722412]
[1748629953805,0.86792799,104590.0,104580.0,0.04604753]
[1748629954016,0.32073966,104590.0,104580.0,0.04604753]
[1748629954225,0.32073966,104590.0,104580.0,0.03472503]
[1748629954884,0.86792799,104590.0,104580.0,0.01978629]
[1748629955293,0.8776523,104590.0,104580.0,0.01978629]
[1748629956126,0.33046397,104590.0,104580.0,0.01076282]
[1748629956338,0.32073966,104590.0,104580.0,0.01076282]
[1748629958095,0.30619881,104590.0,104580.0,0.06655793]
[1748629958304,0.30619881,104590.0,104580.0,0.07558492]
[1748629958535,0.30619881,104590.0,104580.0,0.01978981]
[1748629960696,0.30619881,104590.0,104580.0,0.56697814]
[1748629961554,0.30619881,104590.0,104580.0,0.01978981]
[1748629962830,0.26519881,104590.0,104580.0,0.01978981]
[1748629963039,0.28432045,104590.0,104580.0,0.08830881]
[1748629965329,0.28332045,104590.0,104580.0,0.08830881]
[1748629966392,0.28332045,104590.0,104580.0,0.09963131]
[1748629969520,0.28332045,104590.0,104580.0,0.10624987]
[1748629969737,0.28332045,104590.0,104580.0,0.09963131]
[1748629969944,0.24232045,104590.0,104580.0,0.10625236]
[1748629970149,0.24232045,104590.0,104580.0,0.09963131]
[1748629970355,0.24232045,104590.0,104580.0,0.03773336]
[1748629970563,0.24232045,104590.0,104580.0,0.03111231]
[1748629970771,0.24232045,104590.0,104580.0,0.03774637]
[1748629970990,0.24232045,104590.0,104580.0,0.04621057]
[1748629971407,0.24232045,104590.0,104580.0,0.05284462]
[1748629971617,0.24232045,104590.0,104580.0,0.1169028]
[1748629972022,0.24232045,104590.0,104580.0,0.12353581]
[1748629972259,0.14646615,104590.0,104580.0,0.12353565]
[1748629972479,0.14646615,104590.0,104580.0,0.1169028]
[1748629973343,0.14646615,104590.0,104580.0,0.04621057]
[1748629973559,0.14646615,104590.0,104580.0,0.05284354]
[1748629973778,0.14646615,104590.0,104580.0,0.05284357]
[1748629973991,0.14646615,104590.0,104580.0,0.04152107]
[1748629974197,0.14646615,104590.0,104580.0,0.04152218]
[1748629974403,0.14646615,104590.0,104580.0,0.04152215]
[1748629974637,0.14646615,104590.0,104580.0,0.03488807]
[1748629975492,0.14646615,104590.0,104580.0,0.04152209]
[1748629975703,0.14646615,104590.0,104580.0,0.10378465]
[1748629976571,0.14646615,104590.0,104580.0,0.03488807]
[1748629977208,0.10546615,104590.0,104580.0,0.04152141]
[1748629977419,0.10546615,104590.0,104580.0,0.03488807]
[1748629978900,0.10546615,104590.0,104580.0,0.04152158]
[1748629979106,0.10546615,104590.0,104580.0,0.03488807]
[1748629979317,0.10546615,104590.0,104580.0,0.10378465]
[1748629979532,0.10546615,104590.0,104580.0,0.5820764]
[1748629979859,0.10546615,104590.0,104580.0,0.58871053]
[1748629979956,0.10546615,104590.0,104580.0,0.5820764]
[1748629980396,0.10546615,104590.0,104580.0,0.58871047]
[1748629980616,0.10546615,104590.0,104580.0,0.79614713]
[1748629980617,0.21990555,104590.0,104580.0,0.79614713]
[1748629980836,0.21990555,104590.0,104580.0,0.98613829]
[1748629981056,0.21990555,104590.0,104580.0,0.98613815]
[1748629981282,0.21990555,104590.0,104580.0,0.96994284]
[1748629981526,0.21990555,104590.0,104580.0,0.97103997]
[1748629981743,0.01912154,104590.0,104580.0,1.31396823]
[1748629981952,0.02868259,104590.0,104580.0,1.33309114]
[1748629982162,0.2294666,104590.0,104580.0,1.33309114]
[1748629982374,0.2294666,104590.0,104580.0,1.32352973]
[1748629982808,0.2294666,104590.0,104580.0,1.33016423]
[1748629983025,0.2294666,104590.0,104580.0,1.32352973]
[1748629983450,0.02868259,104590.0,104580.0,1.33309114]
[1748629983681,0.0286825,104590.0,104580.0,1.33309114]
[1748629983885,0.03824355,104590.0,104580.0,1.33309114]
[1748629984099,0.22946642,104590.0,104580.0,1.33309114]
[1748629984534,0.03824355,104590.0,104580.0,1.33309114]
[1748629984749,0.0286825,104590.0,104580.0,1.33972517]
[1748629984985,0.22946642,104590.0,104580.0,1.33972455]
[1748629985204,0.22946642,104590.0,104580.0,1.33309114]
[1748629985440,0.22946642,104590.0,104580.0,1.33016337]
[1748629985657,0.22946688,104590.0,104580.0,1.31396823]
[1748629985874,0.22946688,104590.0,104580.0,1.33017518]
[1748629986358,0.22946688,104590.0,104580.0,1.33309133]
[1748629986997,0.22946688,104590.0,104580.0,1.32352983]
[1748629987425,0.22946688,104590.0,104580.0,1.10360343]
[1748629987675,0.21034506,104590.0,104580.0,0.5564151]
[1748629987896,0.21034506,104590.0,104580.0,0.67242388]
[1748629988110,0.21034506,104590.0,104580.0,0.02642388]
[1748629988353,0.30619936,104590.0,104580.0,0.02642388]
[1748629988804,0.30619936,104590.0,104580.0,0.0481732]
[1748629989018,0.30619936,104590.0,104580.0,0.04152573]
[1748629990748,0.30619936,104590.0,104580.0,0.03775569]
[1748629991168,0.26519936,104590.0,104580.0,0.03775569]
[1748629992255,0.27974021,104590.0,104580.0,0.03775569]
[1748629992957,0.82692854,104590.0,104580.0,0.04440483]
[1748629993202,0.82692854,104590.0,104580.0,0.03775569]
[1748629993641,0.82692854,104590.0,104580.0,0.04304144]
[1748629993642,0.58570021,104590.0,104580.0,0.04304144]
[1748629993860,0.58570021,104590.0,104580.0,0.04004144]
[1748629994132,0.26519936,104590.0,104580.0,0.04004144]